bitfinex/quotes_BTCUSD_20250615
["timestamp","ask_amount","ask_price","bid_price","bid_amount"]
[1750005209569,6.73260806,105530.0,105520.0,0.03063447]
[1750005209811,6.73260797,105530.0,105520.0,0.03063447]
[1750005210009,6.72598063,105530.0,105520.0,0.03063447]
[1750005210223,6.73260798,105530.0,105520.0,0.03063447]
[1750005210431,6.72598063,105530.0,105520.0,0.03063447]
[1750005210857,6.73260792,105530.0,105520.0,0.03063447]
[1750005211068,6.73260794,105530.0,105520.0,0.03063447]
[1750005211297,6.53640786,105530.0,105520.0,0.03063447]
[1750005211514,6.72598063,105530.0,105520.0,0.03063447]
[1750005211731,6.7326079,105530.0,105520.0,0.03063447]
[1750005211958,6.72598063,105530.0,105520.0,0.03063447]
[1750005212167,6.73260786,105530.0,105520.0,0.03063447]
[1750005212611,6.73256786,105530.0,105520.0,0.03063447]
[1750005212823,6.73256751,105530.0,105520.0,0.03063447]
[1750005213275,6.63637577,105530.0,105520.0,0.03063447]
[1750005213501,6.60807802,105530.0,105520.0,0.03063447]
[1750005213765,6.60807836,105530.0,105520.0,0.03063447]
[1750005214191,6.6080931,105530.0,105520.0,0.03063447]
[1750005214415,6.60145384,105530.0,105520.0,0.03063447]
[1750005214631,6.60809321,105530.0,105520.0,0.03063447]
[1750005214845,6.60145384,105530.0,105520.0,0.03063447]
[1750005215058,6.60809339,105530.0,105520.0,0.03063447]
[1750005215273,6.60145384,105530.0,105520.0,0.03063447]
[1750005215695,6.60809332,105530.0,105520.0,0.03063447]
[1750005215911,6.60809327,105530.0,105520.0,0.03063447]
[1750005216123,6.60145384,105530.0,105520.0,0.03063447]
[1750005216353,6.6080933,105530.0,105520.0,0.03063447]
[1750005216562,6.60809324,105530.0,105520.0,0.03063447]
[1750005216851,6.60809319,105530.0,105520.0,0.03063447]
[1750005217069,6.60145384,105530.0,105520.0,0.03063447]
[1750005217285,6.60809326,105530.0,105520.0,0.03063447]
[1750005217496,6.60809312,105530.0,105520.0,0.03063447]
[1750005217932,6.60145384,105530.0,105520.0,0.03063447]
[1750005218144,6.60809294,105530.0,105520.0,0.03063447]
[1750005218367,6.60809281,105530.0,105520.0,0.03063447]
[1750005218621,6.60809289,105530.0,105520.0,0.03063447]
[1750005218840,6.60809288,105530.0,105520.0,0.03063447]
[1750005219057,6.60809286,105530.0,105520.0,0.03063447]
[1750005219278,6.60809291,105530.0,105520.0,0.03063447]
[1750005219495,6.70424213,105530.0,105520.0,0.03063447]
[1750005219707,6.70424214,105530.0,105520.0,0.03063447]
[1750005219935,6.70424213,105530.0,105520.0,0.03063447]
[1750005220362,6.69760306,105530.0,105520.0,0.03063447]
[1750005220580,6.60145384,105530.0,105520.0,0.03063447]
[1750005220791,6.60809284,105530.0,105520.0,0.03063447]
[1750005221036,6.60809287,105530.0,105520.0,0.03063447]
[1750005221319,6.60145384,105530.0,105520.0,0.03063447]
[1750005221530,6.60809289,105530.0,105520.0,0.03063447]
[1750005221743,6.60145384,105530.0,105520.0,0.03063447]
[1750005221962,6.4119728,105530.0,105520.0,0.03063447]
[1750005222181,6.6080928,105530.0,105520.0,0.03063447]
[1750005222404,6.62783051,105530.0,105520.0,0.03063447]
[1750005222622,6.62119157,105530.0,105520.0,0.03063447]
[1750005222829,6.62783051,105530.0,105520.0,0.03063447]
[1750005223055,6.67536418,105530.0,105520.0,0.03063447]
[1750005223483,6.66872521,105530.0,105520.0,0.03063447]
[1750005224151,6.67536398,105530.0,105520.0,0.03063447]
[1750005224367,6.47260521,105530.0,105520.0,0.03063447]
[1750005224584,5.78530956,105530.0,105520.0,0.22017199]
[1750005224825,1.87191015,105530.0,105520.0,0.33527459]
[1750005225260,1.83139015,105530.0,105520.0,0.23912537]
[1750005225470,1.83139015,105530.0,105520.0,0.23912546]
[1750005225741,1.83139015,105530.0,105520.0,0.22964877]
[1750005225972,1.83139015,105530.0,105520.0,0.23912537]
[1750005226809,1.82191445,105530.0,105520.0,0.23912537]
[1750005227022,1.82191445,105530.0,105520.0,0.22964877]
[1750005227023,1.7543609,105530.0,105520.0,0.22964877]
[1750005227234,1.74488511,105530.0,105520.0,0.22964877]
[1750005228717,1.74488511,105530.0,105520.0,0.23912546]
[1750005229928,1.74488511,105530.0,105520.0,0.22964877]
[1750005230790,1.74488511,105530.0,105520.0,0.22017199]
[1750005231001,1.84103433,105530.0,105520.0,0.03063447]
[1750005231213,1.84103433,105530.0,105520.0,0.22017199]
[1750005231859,1.84103433,105530.0,105520.0,0.22964886]
[1750005232696,1.84103433,105530.0,105520.0,0.23912564]
[1750005233158,1.58932511,105530.0,105520.0,0.23912564]
[1750005233367,1.78532511,105530.0,105520.0,0.23912564]
[1750005238091,1.24571056,105530.0,105520.0,0.23912564]
[1750005238304,1.78532511,105530.0,105520.0,0.23912564]
[1750005238713,1.29962511,105530.0,105520.0,0.23912564]
[1750005239169,0.95962511,105530.0,105520.0,0.23912564]
[1750005241347,1.29962511,105530.0,105520.0,0.22964886]
[1750005242823,0.76001056,105530.0,105520.0,0.22964886]
[1750005243037,1.29962511,105530.0,105520.0,0.22964886]
[1750005243252,1.29962511,105530.0,105520.0,0.04011134]
[1750005243483,1.29962511,105530.0,105520.0,0.03063447]
[1750005243957,1.29962511,105530.0,105520.0,0.22964886]
[1750005244886,1.29962511,105530.0,105520.0,0.23912564]
[1750005246388,1.29962511,105530.0,105520.0,0.04011134]
[1750005246853,1.36709031,105530.0,105520.0,0.04011134]
[1750005247068,1.33859931,105530.0,105520.0,0.04011134]
[1750005247284,1.36708431,105530.0,105520.0,0.04011134]
[1750005247499,1.36708431,105530.0,105520.0,0.03063447]
[1750005247728,1.33859931,105530.0,105520.0,0.03063447]
[1750005247957,1.36708431,105530.0,105520.0,0.03063447]
[1750005248179,1.33859931,105530.0,105520.0,0.03063447]
[1750005248395,1.36708331,105530.0,105520.0,0.03063447]
[1750005248610,1.33859931,105530.0,105520.0,0.03063447]
[1750005249028,1.36708431,105530.0,105520.0,0.03063447]
[1750005249235,1.33859931,105530.0,105520.0,0.03063447]
[1750005249453,1.36708431,105530.0,105520.0,0.03063447]
[1750005249673,1.33859931,105530.0,105520.0,0.03063447]
[1750005249879,1.36708431,105530.0,105520.0,0.03063447]
[1750005250092,0.76000456,105530.0,105520.0,0.22017199]
[1750005250315,1.33859931,105530.0,105520.0,0.22017199]
[1750005251159,1.36708431,105530.0,105520.0,0.22017199]
[1750005251382,1.33859931,105530.0,105520.0,0.03063447]
[1750005251627,1.36708331,105530.0,105520.0,0.03063447]
[1750005251890,1.33859931,105530.0,105520.0,0.03063447]
[1750005252118,1.39955438,105530.0,105520.0,0.03063447]
[1750005252348,6.21244268,105530.0,105520.0,0.00013447]
[1750005252572,6.08373085,105530.0,105520.0,0.03263447]
[1750005252794,0.6206382,105530.0,105520.0,0.03263447]
[1750005252985,1.18056028,105530.0,105520.0,0.03263447]
[1750005253231,1.37656028,105530.0,105520.0,0.03263447]
[1750005253891,1.18056028,105530.0,105520.0,0.03263447]
[1750005254110,1.37656028,105530.0,105520.0,0.03263447]
[1750005254416,1.18056028,105530.0,105520.0,0.03263447]
[1750005254633,1.37656028,105530.0,105520.0,0.03263447]
[1750005255768,1.37656028,105530.0,105520.0,0.23164886]
[1750005255995,1.37656028,105530.0,105520.0,0.24112564]
[1750005256218,1.38320081,105530.0,105520.0,0.23164886]
[1750005256440,1.3832008,105530.0,105520.0,0.23164886]
[1750005256682,1.37656028,105530.0,105520.0,0.23164886]
[1750005256902,0.77612106,105530.0,105520.0,0.23164886]
[1750005257113,1.38320081,105530.0,105520.0,0.23164886]
[1750005257334,1.38320077,105530.0,105520.0,0.23164886]
[1750005257552,1.37656028,105530.0,105520.0,0.23164886]
[1750005257975,1.38320073,105530.0,105520.0,0.23164886]
[1750005258205,1.3832007,105530.0,105520.0,0.23164886]
[1750005258423,1.38320077,105530.0,105520.0,0.24112564]
[1750005258867,1.38320069,105530.0,105520.0,0.24112564]
[1750005259084,1.38320067,105530.0,105520.0,0.24112564]
[1750005259318,1.38320038,105530.0,105520.0,0.24112564]
[1750005259594,1.38320012,105530.0,105520.0,0.24112564]
[1750005259809,1.38319995,105530.0,105520.0,0.24112564]
[1750005260023,1.37656028,105530.0,105520.0,0.24112564]
[1750005260236,1.37652028,105530.0,105520.0,0.25060233]
[1750005260452,1.38315949,105530.0,105520.0,0.25060233]
[1750005260663,1.37652028,105530.0,105520.0,0.25060233]
[1750005261581,1.38315944,105530.0,105520.0,0.24112564]
[1750005261807,1.38315942,105530.0,105520.0,0.24112564]
[1750005262014,1.37652028,105530.0,105520.0,0.24112564]
[1750005262216,1.38315926,105530.0,105520.0,0.24112564]
[1750005262418,1.38315936,105530.0,105520.0,0.24112564]
[1750005262620,1.38315942,105530.0,105520.0,0.24112564]
[1750005262830,0.76944053,105530.0,105520.0,0.25060233]
[1750005263050,1.37648028,105530.0,105520.0,0.30504239]
[1750005263245,1.37648028,105530.0,105520.0,0.25060233]
[1750005263996,0.57034586,105530.0,105520.0,0.26955508]
[1750005264411,0.57982147,105530.0,105520.0,0.26955508]
[1750005264835,1.18690122,105530.0,105520.0,0.26955508]
[1750005265048,1.19637701,105530.0,105520.0,0.26955508]
[1750005265257,1.19337692,105530.0,105520.0,0.26955508]
[1750005265469,1.19437692,105530.0,105520.0,0.27155508]
[1750005265679,1.19137692,105530.0,105520.0,0.27155508]
[1750005265878,1.19337692,105530.0,105520.0,0.27155508]
[1750005267754,1.19337754,105530.0,105520.0,0.27155508]
[1750005267957,1.38289781,105530.0,105520.0,0.27155526]
[1750005268220,1.34241781,105530.0,105520.0,0.27155526]
[1750005268424,1.33294238,105530.0,105520.0,0.24312555]
[1750005268596,1.33294238,105530.0,105520.0,0.25260215]
[1750005268797,1.33294238,105530.0,105520.0,0.26207866]
[1750005269170,1.32346677,105530.0,105520.0,0.26207866]
[1750005270577,1.31399107,105530.0,105520.0,0.25260215]
[1750005270796,1.31399107,105530.0,105520.0,0.26207866]
[1750005273663,1.31399107,105530.0,105520.0,0.24312555]
[1750005273912,1.30451528,105530.0,105520.0,0.24312555]
[1750005275463,1.30451528,105530.0,105520.0,0.25260215]
[1750005275691,0.5079157,105530.0,105520.0,0.27155481]
[1750005275936,1.14342255,105530.0,105520.0,0.27155481]
[1750005276146,1.12447088,105530.0,105520.0,0.27155481]
[1750005277032,1.12447088,105530.0,105520.0,0.36770403]
[1750005277258,1.13394667,105530.0,105520.0,0.27155481]
[1750005277902,1.14342255,105530.0,105520.0,0.27155481]
[1750005278803,1.13394667,105530.0,105520.0,0.27155481]
[1750005280551,0.97850667,105530.0,105520.0,0.27155481]
[1750005280793,1.13394667,105530.0,105520.0,0.27155481]
[1750005282753,1.14342255,105530.0,105520.0,0.27155481]
[1750005282977,1.33294211,105530.0,105520.0,0.27155481]
[1750005283421,1.14342255,105530.0,105520.0,0.27155481]
[1750005284589,1.13394667,105530.0,105520.0,0.27155481]
[1750005285283,0.37142692,105530.0,105520.0,0.27155481]
[1750005285509,1.12447088,105530.0,105520.0,0.27155481]
[1750005285726,0.96903088,105530.0,105520.0,0.27155481]
[1750005285958,1.13394596,105530.0,105520.0,0.27155481]
[1750005286824,1.14342175,105530.0,105520.0,0.27155481]
[1750005287035,1.15289763,105530.0,105520.0,0.27155481]
[1750005288145,1.14342175,105530.0,105520.0,0.27155481]
[1750005289024,1.13394596,105530.0,105520.0,0.27155481]
[1750005289245,1.14342166,105530.0,105520.0,0.27155481]
[1750005289456,1.15289745,105530.0,105520.0,0.27155481]
[1750005290241,0.98798166,105530.0,105520.0,0.36770403]
[1750005290331,0.52686621,105530.0,105520.0,0.36770403]
[1750005290547,0.52686621,105530.0,105520.0,0.27155481]
[1750005291573,0.52686612,105530.0,105520.0,0.27155481]
[1750005291779,0.53634182,105530.0,105520.0,0.27155481]
[1750005295310,0.32408883,105530.0,105520.0,0.27155481]
[1750005295526,0.18386665,105530.0,105520.0,0.27155481]
[1750005296172,0.7909464,105530.0,105520.0,0.27155481]
[1750005296599,0.79090587,105530.0,105520.0,0.36770403]
[1750005296819,0.18382612,105530.0,105520.0,0.36770403]
[1750005297040,0.79090587,105530.0,105520.0,0.36770403]
[1750005297910,0.80038148,105530.0,105520.0,0.27155481]
[1750005299067,0.25842461,105540.0,105530.0,0.21794639]
[1750005299068,0.028483,105540.0,105530.0,0.21794639]
[1750005299292,0.22078365,105550.0,105540.0,0.24860953]
[1750005299293,0.07833483,105550.0,105540.0,0.24860953]
[1750005299517,0.94543753,105560.0,105550.0,0.19895783]
[1750005299738,5.83227993,105560.0,105550.0,0.20843192]
[1750005299956,6.16564194,105560.0,105550.0,0.19895783]
[1750005300177,6.1722801,105560.0,105550.0,0.18948365]
[1750005300433,0.35894773,105550.0,105540.0,0.23913508]
[1750005300650,1.13190112,105550.0,105540.0,0.26108407]
[1750005300876,1.34033232,105550.0,105540.0,0.0307]
[1750005301101,1.34033232,105550.0,105530.0,0.25912218]
[1750005301102,0.01894881,105540.0,105530.0,0.25912218]
[1750005301326,0.61655402,105540.0,105530.0,0.25812218]
[1750005302012,0.62602847,105540.0,105530.0,0.25812218]
[1750005302448,0.63550301,105540.0,105530.0,0.25812218]
[1750005302861,0.61655402,105540.0,105530.0,0.25812218]
[1750005303087,0.34947337,105550.0,105540.0,0.21792577]
[1750005303306,0.97550067,105550.0,105540.0,0.24852577]
[1750005303524,1.14037449,105550.0,105540.0,0.24852577]
[1750005303737,1.13090049,105550.0,105540.0,0.24852577]
[1750005304211,1.14037449,105550.0,105540.0,0.24852577]
[1750005304651,1.14137449,105550.0,105540.0,0.24952577]
[1750005304861,1.07370115,105550.0,105540.0,0.24952577]
[1750005305294,1.06422715,105550.0,105540.0,0.24952577]
[1750005305812,1.07370115,105550.0,105540.0,0.24952577]
[1750005306041,1.27265898,105550.0,105540.0,0.24952595]
[1750005306335,1.26318561,105550.0,105540.0,0.24952595]
[1750005306784,1.06422778,105550.0,105540.0,0.24952595]
[1750005306976,1.07370187,105550.0,105540.0,0.26847494]
[1750005307227,1.06422778,105550.0,105540.0,0.26847494]
[1750005308522,1.07370187,105550.0,105540.0,0.26847494]
[1750005309155,1.2726597,105550.0,105540.0,0.24952595]
[1750005309395,1.35933537,105550.0,105540.0,0.001]
[1750005309609,1.35608755,105550.0,105540.0,0.1999766]
[1750005309823,1.34038755,105550.0,105540.0,0.1999766]
[1750005310245,1.24423833,105550.0,105540.0,0.1999766]
[1750005310718,1.24423833,105550.0,105540.0,0.20945141]
[1750005311135,1.24423833,105550.0,105540.0,0.1999766]
[1750005311363,1.24423833,105550.0,105540.0,0.2094515]
[1750005312304,1.23476424,105550.0,105540.0,0.1999766]
[1750005313265,1.22529006,105550.0,105540.0,0.19050161]
[1750005313477,1.22529006,105550.0,105540.0,0.1999766]
[1750005314122,1.22529006,105550.0,105540.0,0.2094515]
[1750005314327,1.06989006,105550.0,105540.0,0.2094515]
[1750005314558,1.27516406,105550.0,105540.0,0.22840103]
[1750005315846,1.12927779,105550.0,105540.0,0.23787566]
[1750005316059,1.29411197,105550.0,105540.0,0.26947566]
[1750005316272,1.29411197,105550.0,105540.0,0.26947521]
[1750005316485,1.29411197,105550.0,105540.0,0.26000067]
[1750005316904,1.29411197,105550.0,105540.0,0.23157651]
[1750005317168,1.29411197,105550.0,105540.0,0.19997651]
[1750005317575,1.29411197,105550.0,105540.0,0.20945132]
[1750005319077,1.29411197,105550.0,105540.0,0.21892604]
[1750005319302,1.29411197,105550.0,105540.0,0.25950067]
[1750005319537,1.29411197,105550.0,105540.0,0.26897521]
[1750005320057,1.29411197,105550.0,105540.0,0.25950067]
[1750005320826,1.28463824,105550.0,105540.0,0.23107651]
[1750005321104,1.27516424,105550.0,105540.0,0.23107651]
[1750005321937,1.27516424,105550.0,105540.0,0.24055132]
[1750005322309,1.27516424,105550.0,105540.0,0.25002604]
[1750005322514,1.27516424,105550.0,105540.0,0.19997669]
[1750005323317,1.26569006,105550.0,105540.0,0.001]
[1750005323762,1.26569006,105550.0,105540.0,0.19997669]
[1750005324202,1.26569006,105550.0,105540.0,0.001]
[1750005324749,1.26569006,105550.0,105540.0,0.19050161]
[1750005324964,1.33317895,105550.0,105540.0,0.19050161]
[1750005325380,1.33317895,105550.0,105540.0,0.001]
[1750005327931,1.33317895,105550.0,105540.0,0.19050161]
[1750005328133,1.33317895,105550.0,105540.0,0.19997669]
[1750005328311,1.33317895,105550.0,105540.0,0.20945168]
[1750005328505,1.33317895,105550.0,105540.0,0.19997669]
[1750005329289,1.33317895,105550.0,105540.0,0.01047508]
[1750005330820,1.33317895,105550.0,105540.0,0.19997669]
[1750005331032,1.33317895,105550.0,105540.0,0.001]
[1750005331273,0.72628365,105550.0,105540.0,0.19050161]
[1750005331489,0.72628365,105550.0,105540.0,0.19997669]
[1750005331490,1.33317895,105550.0,105540.0,0.19997669]
[1750005331698,1.33317895,105550.0,105540.0,0.01047508]
[1750005331905,1.33317895,105550.0,105540.0,0.001]
[1750005332765,1.42932817,105550.0,105540.0,0.001]
[1750005335548,0.82243287,105550.0,105540.0,0.001]
[1750005335757,1.38888817,105550.0,105540.0,0.001]
[1750005336462,1.29273895,105550.0,105540.0,0.001]
[1750005336672,1.29269895,105550.0,105540.0,0.2328766]
[1750005338610,1.29269895,105550.0,105540.0,0.22340161]
[1750005339477,1.14685277,105550.0,105540.0,0.24235114]
[1750005339707,1.30217277,105550.0,105540.0,0.24235114]
[1750005340631,1.32112032,105550.0,105540.0,0.25182559]
[1750005340897,1.31164677,105550.0,105540.0,0.23287669]
[1750005341143,1.31164677,105550.0,105540.0,0.24235168]
[1750005341799,1.29269895,105550.0,105540.0,0.0339]
[1750005342029,1.31357808,105550.0,105540.0,0.001]
[1750005342705,1.29269895,105550.0,105540.0,0.001]
[1750005343346,1.91469425,105550.0,105540.0,0.001]
[1750005343554,6.64040325,105550.0,105540.0,0.001]
[1750005344694,6.68084325,105550.0,105540.0,0.001]
[1750005345546,6.66514325,105550.0,105540.0,0.001]
[1750005347146,6.05824795,105550.0,105540.0,0.001]
[1750005347566,6.0874581,105550.0,105540.0,0.001]
[1750005347836,6.04314795,105550.0,105540.0,0.001]
[1750005350035,5.43625265,105550.0,105540.0,0.001]
[1750005350267,6.04314795,105550.0,105540.0,0.001]
[1750005351370,6.04314795,105550.0,105540.0,0.01998]
[1750005351600,6.04314795,105550.0,105540.0,0.001]
[1750005351862,6.13929717,105550.0,105540.0,0.001]
[1750005352338,5.53240187,105550.0,105540.0,0.001]
[1750005352551,6.13929717,105550.0,105540.0,0.001]
[1750005359955,5.43625265,105550.0,105540.0,0.001]
[1750005360179,6.04314795,105550.0,105540.0,0.0324]
[1750005363285,5.88782795,105550.0,105540.0,0.0324]
[1750005363496,6.04310795,105550.0,105540.0,0.0324]
[1750005363718,1.13737895,105550.0,105540.0,0.2313766]
[1750005363937,1.30213241,105550.0,105540.0,0.25032595]
[1750005364384,1.30213241,105550.0,105540.0,0.2408515]
[1750005364592,1.30213241,105550.0,105540.0,0.25032631]
[1750005367039,0.53995711,105550.0,105540.0,0.25032631]
[1750005367254,1.30213241,105550.0,105540.0,0.25032631]
[1750005367467,1.32108014,105550.0,105540.0,0.30567984]
[1750005367710,1.32108086,105550.0,105540.0,0.2408515]
[1750005367927,1.32108086,105550.0,105540.0,0.25032631]
[1750005368209,1.31160713,105550.0,105540.0,0.25032631]
[1750005368450,1.29265895,105550.0,105540.0,0.2313766]
[1750005368653,1.29265895,105550.0,105540.0,0.24085168]
[1750005369564,1.13737895,105550.0,105540.0,0.24085168]
[1750005369803,1.29265895,105550.0,105540.0,0.25032658]
[1750005370006,1.29265895,105550.0,105540.0,0.25980139]
[1750005370247,1.29265895,105550.0,105540.0,0.26927566]
[1750005370444,0.68576365,105550.0,105540.0,0.26927566]
[1750005370666,1.29265895,105550.0,105540.0,0.26927566]
[1750005370883,1.29265895,105550.0,105540.0,0.25980103]
[1750005371523,1.29265895,105550.0,105540.0,0.25032631]
[1750005371789,1.29265895,105550.0,105540.0,0.2408515]
[1750005372107,1.29265895,105550.0,105540.0,0.25032631]
[1750005373223,1.29265895,105550.0,105540.0,0.2408515]
[1750005373462,0.53048365,105550.0,105540.0,0.25032622]
[1750005373648,1.29265895,105550.0,105540.0,0.25032622]
[1750005373867,1.29265895,105550.0,105540.0,0.2408515]
[1750005375295,1.29265895,105550.0,105540.0,0.22190161]
[1750005375929,1.29265895,105550.0,105540.0,0.23137669]
[1750005376179,1.29265895,105550.0,105540.0,0.0324]
[1750005376847,1.3046291,105550.0,105540.0,0.0324]
[1750005377515,1.3331091,105550.0,105540.0,0.0324]
[1750005377903,1.3331091,105550.0,105540.0,0.001]
[1750005379932,6.0431181,105550.0,105540.0,0.001]
[1750005380605,6.6500134,105550.0,105540.0,0.001]
[1750005380836,6.68795175,105550.0,105540.0,0.001]
[1750005381143,6.0810564,105550.0,105540.0,0.001]
[1750005381368,6.0651564,105550.0,105540.0,0.001]
[1750005381658,6.77755516,105550.0,105540.0,0.001]
[1750005381857,6.80586799,105550.0,105540.0,0.001]
[1750005382301,6.81250582,105550.0,105540.0,0.001]
[1750005382756,6.81250577,105550.0,105540.0,0.001]
[1750005382954,6.77755516,105550.0,105540.0,0.001]
[1750005383157,6.78419294,105550.0,105540.0,0.001]
[1750005383421,6.77755516,105550.0,105540.0,0.001]
[1750005383636,6.77222284,105550.0,105540.0,0.001]
[1750005383860,6.76558501,105550.0,105540.0,0.001]
[1750005384077,6.77222277,105550.0,105540.0,0.001]
[1750005384539,6.76558501,105550.0,105540.0,0.001]
[1750005384776,6.77222282,105550.0,105540.0,0.001]
[1750005384985,6.77222276,105550.0,105540.0,0.001]
[1750005385191,6.77222275,105550.0,105540.0,0.001]
[1750005385407,6.77222273,105550.0,105540.0,0.001]
[1750005385551,6.77222274,105550.0,105540.0,0.001]
[1750005385748,6.76558501,105550.0,105540.0,0.001]
[1750005385951,6.7722275,105550.0,105540.0,0.001]
[1750005386175,6.77222752,105550.0,105540.0,0.001]
[1750005386389,6.77222753,105550.0,105540.0,0.001]
[1750005386778,6.86837672,105550.0,105540.0,0.001]
[1750005386989,6.86837659,105550.0,105540.0,0.001]
[1750005387196,6.86173423,105550.0,105540.0,0.001]
[1750005387851,6.76558501,105550.0,105540.0,0.001]
[1750005388058,6.74968501,105550.0,105540.0,0.001]
[1750005388661,6.73428501,105550.0,105540.0,0.001]
[1750005390508,6.73424501,105550.0,105540.0,0.001]
[1750005391121,6.73424501,105550.0,105540.0,0.0324]
[1750005391122,5.30933265,105550.0,105540.0,0.0324]
[1750005391331,6.07146795,105550.0,105540.0,0.0324]
[1750005393004,5.87586795,105550.0,105540.0,0.0324]
[1750005393633,5.87586795,105550.0,105540.0,0.89679649]
[1750005393634,0.02948,105550.0,105540.0,0.89679649]
[1750005393883,0.001,105550.0,105540.0,0.28990119]
[1750005394068,0.15624,105550.0,105540.0,0.28990119]
[1750005394284,0.7631353,105550.0,105540.0,0.26486662]
[1750005394492,0.6268424,105550.0,105540.0,0.26486662]
[1750005394910,0.55933412,105550.0,105540.0,0.26486662]
[1750005395123,0.54986057,105550.0,105540.0,0.26486662]
[1750005395349,0.55086048,105550.0,105540.0,0.26886662]
[1750005395588,0.55933412,105550.0,105540.0,0.2856115]
[1750005395819,0.55933412,105550.0,105540.0,0.26886662]
[1750005396287,0.55933403,105550.0,105540.0,0.28661207]
[1750005396522,0.56880776,105550.0,105540.0,0.26886662]
[1750005396727,0.55933403,105550.0,105540.0,0.28661206]
[1750005396937,0.55933403,105550.0,105540.0,0.26886662]
[1750005397159,0.55933403,105550.0,105540.0,0.28661205]
[1750005397614,0.01994701,105550.0,105540.0,0.28661192]
[1750005397839,0.01047346,105550.0,105540.0,0.28661192]
[1750005398046,0.0199471,105550.0,105540.0,0.28661192]
[1750005398465,0.01047346,105550.0,105540.0,0.28661187]
[1750005398713,0.001,105550.0,105540.0,0.28661192]
[1750005398954,0.001,105550.0,105540.0,0.32121956]
[1750005399411,0.001,105550.0,105540.0,0.33896467]
[1750005399649,0.001,105550.0,105540.0,0.33896465]
[1750005399869,0.001,105550.0,105540.0,0.3389644]
[1750005400107,0.001,105550.0,105540.0,0.33896424]
[1750005400630,0.001,105550.0,105540.0,0.33896425]
[1750005400853,0.001,105550.0,105540.0,0.32121956]
[1750005401080,0.001,105550.0,105540.0,0.33896423]
[1750005401599,0.001,105550.0,105540.0,0.28661129]
[1750005401836,0.001,105550.0,105540.0,0.28661102]
[1750005402327,0.001,105550.0,105540.0,0.28661097]
[1750005402589,0.001,105550.0,105540.0,0.9044954]
[1750005402824,0.001,105550.0,105540.0,0.95068724]
[1750005403064,0.001,105550.0,105540.0,1.02909226]
[1750005403309,0.001,105550.0,105540.0,1.04683517]
[1750005403768,0.001,105550.0,105540.0,1.04683516]
[1750005404014,0.001,105550.0,105540.0,1.02909226]
[1750005404266,0.001,105550.0,105540.0,1.20203481]
[1750005404496,0.001,105550.0,105540.0,1.23895695]
[1750005404981,0.002,105550.0,105540.0,1.24295635]
[1750005405264,0.002,105550.0,105540.0,1.25486852]
[1750005405493,0.001,105550.0,105540.0,1.25086819]
[1750005405715,0.34,105580.0,105570.0,0.26320466]
[1750005405953,0.34,105580.0,105570.0,0.28094605]
[1750005406216,0.34,105580.0,105570.0,0.31614149]
[1750005406433,0.34,105580.0,105570.0,0.28094586]
[1750005406672,0.34,105580.0,105570.0,0.28098792]
[1750005406890,0.34,105580.0,105570.0,0.28098791]
[1750005407104,0.34013458,105580.0,105570.0,0.28098791]
[1750005407315,0.34113458,105580.0,105570.0,0.28098791]
[1750005407546,0.35060526,105580.0,105570.0,0.28098791]
[1750005407798,0.35060526,105580.0,105570.0,0.28198791]
[1750005408068,0.35060526,105580.0,105570.0,0.26420466]
[1750005408329,0.36007612,105580.0,105570.0,0.28198793]
[1750005408584,0.36007612,105580.0,105570.0,0.42548957]
[1750005408585,0.00113458,105580.0,105570.0,0.42548957]
[1750005408848,0.00113458,105580.0,105570.0,1.10229339]
[1750005409108,0.00113458,105580.0,105570.0,0.56290637]
[1750005409341,0.00113458,105580.0,105570.0,0.58068706]
[1750005409573,0.00113458,105580.0,105570.0,0.56290637]
[1750005409807,0.00113458,105580.0,105570.0,0.56286637]
[1750005410972,0.00113458,105580.0,105570.0,0.51560642]
[1750005414093,0.01060535,105580.0,105570.0,0.36044642]
[1750005414342,0.01060535,105580.0,105570.0,0.51560642]
[1750005414569,0.01060526,105580.0,105570.0,0.51560642]
[1750005414797,0.01060526,105580.0,105570.0,0.36044642]
[1750005415027,0.01060526,105580.0,105570.0,0.51560642]
[1750005415736,0.61637969,105590.0,105580.0,0.25421301]
[1750005416649,0.02841069,105590.0,105580.0,0.26368387]
[1750005417377,0.04000967,105590.0,105580.0,0.26468387]
[1750005417618,0.23889213,105590.0,105580.0,0.22172981]
[1750005417848,0.7688091,105590.0,105580.0,0.21884401]
[1750005418073,0.7688091,105590.0,105580.0,0.22831523]
[1750005418312,0.74986846,105590.0,105580.0,0.001]
[1750005418790,5.83157746,105590.0,105580.0,0.001]
[1750005419251,5.79987746,105590.0,105580.0,0.23250121]
[1750005419566,5.79987746,105590.0,105580.0,0.24197252]
[1750005419567,0.55048144,105590.0,105580.0,0.24197252]
[1750005419670,1.24498846,105590.0,105580.0,0.24197252]
[1750005419905,1.24498846,105590.0,105580.0,0.2325013]
[1750005420134,1.24498846,105590.0,105580.0,0.2419727]
[1750005420359,1.24498846,105590.0,105580.0,0.26091505]
[1750005420844,1.24498846,105590.0,105580.0,0.2419727]
[1750005421093,1.24498846,105590.0,105580.0,0.25144401]
[1750005421327,1.24498846,105590.0,105580.0,0.26091523]
[1750005422960,0.70560144,105590.0,105580.0,0.2419727]
[1750005423202,1.24498846,105590.0,105580.0,0.2419727]
[1750005423472,0.02106876,105590.0,105580.0,0.32901531]
[1750005423725,0.04000877,105590.0,105580.0,0.32901531]
[1750005423952,0.01159898,105590.0,105580.0,0.32901531]
[1750005424629,0.01159898,105590.0,105580.0,0.42525707]
[1750005424868,0.002,105590.0,105580.0,0.96464409]
[1750005425111,0.002,105590.0,105580.0,1.11976409]
[1750005426101,0.002,105590.0,105580.0,1.14810152]
[1750005426324,0.002,105590.0,105580.0,1.16708152]
[1750005426786,0.34946808,105610.0,105600.0,0.26354277]
[1750005427030,0.50458799,105610.0,105600.0,0.40697237]
[1750005427264,0.34885722,105610.0,105600.0,0.40697237]
[1750005427505,0.34,105610.0,105600.0,0.40697237]
[1750005427742,0.34885724,105610.0,105600.0,0.40697237]
[1750005427983,0.34946808,105610.0,105600.0,0.40697237]
[1750005428224,0.35832522,105610.0,105600.0,0.40697237]
[1750005428460,0.95048078,105620.0,105610.0,0.24928132]
[1750005428461,0.39714664,105620.0,105610.0,0.24928132]
[1750005428708,0.38715412,105620.0,105610.0,0.26382217]
[1750005428937,0.38715408,105620.0,105610.0,0.26382217]
[1750005429175,0.37768663,105620.0,105610.0,0.26382217]
[1750005429428,0.01875227,105620.0,105610.0,0.36006393]
[1750005429683,0.02036162,105620.0,105610.0,0.36006393]
[1750005429930,0.02982916,105620.0,105610.0,0.36206393]
[1750005430177,0.02982898,105620.0,105610.0,0.36206393]
[1750005430402,0.02982907,105620.0,105610.0,0.36206393]
[1750005430642,0.02982898,105620.0,105610.0,0.36206393]
[1750005431340,0.02036162,105620.0,105610.0,0.36206393]
[1750005431578,0.02982907,105620.0,105610.0,0.36206393]